fUST/lending_fUST_20240619
["ID","MTS","AMOUNT","RATE_DAILY","PERIOD"]
[329841700,1718739042735,-500.0,0.00016712,2]
[329841703,1718739042744,-500.0,0.00016712,2]
[329841706,1718739042754,-500.0,0.00016712,2]
[329841707,1718739042768,-500.0,0.00016712,2]
[329841709,1718739042783,-500.0,0.00016712,2]
[329841711,1718739042805,-500.0,0.00016712,2]
[329841713,1718739042825,-500.0,0.00016712,2]
[329841715,1718739042836,-500.0,0.00016712,2]
[329841717,1718739042846,-500.0,0.00016712,2]
[329841718,1718739042857,-466.23769345,0.00016712,2]
[329841720,1718739042867,-500.0,0.00016712,2]
[329841722,1718739042878,-6450.44,0.00016712,2]
[329841724,1718739042887,-500.0,0.00016712,2]
[329841726,1718739042897,-500.0,0.00016712,2]
[329841727,1718739042907,-500.0,0.00016712,2]
[329841728,1718739042916,-500.0,0.00016712,2]
[329841729,1718739042926,-500.0,0.00016712,2]
[329841730,1718739042937,-500.0,0.00016712,2]
[329841731,1718739042946,-500.0,0.00016712,2]
[329841732,1718739042956,-500.0,0.00016712,2]
[329841733,1718739042966,-500.0,0.00016712,2]
[329841734,1718739042975,-500.0,0.00016712,2]
[329841735,1718739042985,-864.39,0.00016712,2]
[329841736,1718739042995,-500.0,0.00016712,2]
[329841737,1718739043005,-500.0,0.00016712,2]
[329841738,1718739043015,-500.0,0.00016712,2]
[329841739,1718739043024,-500.0,0.00016712,2]
[329841740,1718739043034,-500.0,0.00016712,2]
[329841741,1718739043044,-500.0,0.00016712,2]
[329841742,1718739043054,-500.0,0.00016712,2]
[329841743,1718739043063,-1066.17,0.00016712,2]
[329841744,1718739043073,-500.0,0.00016712,2]
[329841745,1718739043083,-500.0,0.00016712,2]
[329841746,1718739043093,-189.41364229,0.00016712,2]
[329841747,1718739043106,-500.0,0.00016712,2]
[329841748,1718739043116,-500.0,0.00016712,2]
[329841749,1718739043126,-500.0,0.00016712,2]
[329841750,1718739043137,-500.0,0.00016712,2]
[329841751,1718739043148,-500.0,0.00016712,2]
[329841752,1718739043159,-500.55,0.00016712,2]
[329841753,1718739043169,-500.0,0.00016712,2]
[329841754,1718739043180,-500.0,0.00016712,2]
[329841755,1718739043191,-744.28,0.00016712,2]
[329841756,1718739043202,-500.0,0.00016712,2]
[329841757,1718739043213,-500.0,0.00016712,2]
[329841758,1718739043223,-500.0,0.00016712,2]
[329841759,1718739043235,-500.0,0.00016712,2]
[329841760,1718739043245,-540.04,0.00016712,2]
[329841761,1718739043255,-500.0,0.00016984,2]
[329841762,1718739043265,-500.0,0.00016984,2]
[329841765,1718739043366,-500.0,0.00016985,2]
[329841766,1718739043376,-500.0,0.00016985,2]
[329841767,1718739043386,-1288.36802935,0.00016986,15]
[329841768,1718739043396,-500.0,0.00016986,2]
[329841769,1718739043410,-509.92617409,0.00016986,2]
[329841770,1718739043422,-500.0,0.00016986,2]
[329841771,1718739043432,-500.0,0.00016986,2]
[329841772,1718739043442,-500.0,0.00016986,2]
[329841773,1718739043452,-500.0,0.00016986,2]
[329841774,1718739043462,-500.0,0.00016986,2]
[329841775,1718739043471,-500.0,0.00016986,2]
[329841776,1718739043482,-500.0,0.00016986,2]
[329841777,1718739043491,-500.0,0.00016986,2]
[329841778,1718739043501,-500.0,0.00016986,2]
[329841779,1718739043510,-500.0,0.00016986,2]
[329841780,1718739043519,-500.0,0.00016986,2]
[329841781,1718739043528,-500.0,0.00016986,2]
[329841782,1718739043539,-500.0,0.00016986,2]
[329841783,1718739043549,-500.0,0.00016986,2]
[329841784,1718739043559,-500.0,0.00016986,2]
[329841785,1718739043571,-500.0,0.00016986,2]
[329841786,1718739043581,-629.91922635,0.00016986,2]
[329841787,1718739043592,-500.0,0.00016986,2]
[329841788,1718739043607,-560.13,0.00016986,2]
[329841789,1718739043617,-500.0,0.00016986,2]
[329841790,1718739043628,-500.0,0.00016986,2]
[329841791,1718739043638,-500.0,0.00016986,2]
[329841792,1718739043648,-500.0,0.00016986,2]
[329841793,1718739043657,-500.0,0.00016986,2]
[329841794,1718739043668,-500.0,0.00016986,2]
[329841795,1718739043677,-1498.29,0.00016986,2]
[329841796,1718739043688,-831.37,0.00016986,2]
[329841797,1718739043698,-500.0,0.00016986,2]
[329841798,1718739043708,-3851.95,0.00016986,2]
[329841799,1718739043719,-500.0,0.00016986,2]
[329841800,1718739043729,-500.0,0.00016986,2]
[329841801,1718739043740,-500.0,0.00016986,2]
[329841802,1718739043750,-500.0,0.00016986,2]
[329841803,1718739043760,-500.0,0.00016986,2]
[329841804,1718739043770,-500.0,0.00016986,2]
[329841805,1718739043780,-6450.44,0.00016986,2]
[329841806,1718739043789,-500.0,0.00016986,2]
[329841807,1718739043799,-500.0,0.00016986,2]
[329841808,1718739043809,-500.0,0.00016986,2]
[329841809,1718739043819,-500.0,0.00016986,2]
[329841810,1718739043829,-500.0,0.00016986,2]
[329841811,1718739043839,-500.0,0.00016986,2]
[329841812,1718739043852,-500.0,0.00016986,2]
[329841813,1718739043862,-500.0,0.00016986,2]
[329841814,1718739043872,-225.85,0.00016986,2]
[329841815,1718739043881,-864.39,0.00016986,2]
[329841816,1718739043891,-500.0,0.00016986,2]
[329841817,1718739043900,-500.0,0.00016986,2]
[329841818,1718739043909,-500.0,0.00016986,2]
[329841819,1718739043919,-500.0,0.00016986,2]
[329841820,1718739043929,-500.0,0.00016986,2]
[329841823,1718739043939,-1066.17,0.00016986,2]
[329841826,1718739043948,-500.0,0.00016986,2]
[329841829,1718739043959,-500.0,0.00016986,2]
[329841831,1718739043969,-500.0,0.00016986,2]
[329841834,1718739043979,-500.0,0.00016986,2]
[329841837,1718739043988,-322.94445496,0.00016986,2]
[329841840,1718739043998,-744.28,0.00016986,2]
[329841842,1718739044008,-500.0,0.00016986,2]
[329841844,1718739044018,-500.0,0.00016986,2]
[329841846,1718739044028,-500.0,0.00016986,2]
[329841848,1718739044037,-500.0,0.00016986,2]
[329841850,1718739044047,-500.0,0.00017259,2]
[329841851,1718739044056,-566.16,0.0001726,2]
[329841853,1718739044066,-500.0,0.0001726,2]
[329841855,1718739044076,-500.0,0.0001726,2]
[329841857,1718739044086,-500.0,0.0001726,2]
[329841859,1718739044095,-500.0,0.0001726,2]
[329841860,1718739044108,-193.73350357,0.0001726,2]
[329841862,1718739044117,-500.0,0.0001726,2]
[329841864,1718739044127,-500.0,0.0001726,2]
[329841866,1718739044136,-500.0,0.0001726,2]
[329841868,1718739044145,-500.0,0.0001726,2]
[329841869,1718739044154,-560.13,0.0001726,2]
[329841871,1718739044163,-500.0,0.0001726,2]
[329841873,1718739044173,-500.0,0.0001726,2]
[329841875,1718739044183,-563.0,0.0001726,2]
[329841877,1718739044193,-500.0,0.0001726,2]
[329841878,1718739044203,-500.0,0.0001726,2]
[329841880,1718739044214,-1498.29,0.0001726,2]
[329841882,1718739044224,-831.37,0.0001726,2]
[329841884,1718739044234,-500.0,0.0001726,2]
[329841886,1718739044244,-3851.95,0.0001726,2]
[329841888,1718739044254,-500.0,0.0001726,2]
[329841889,1718739044264,-500.0,0.0001726,2]
[329841891,1718739044273,-602.88,0.0001726,2]
[329841893,1718739044283,-500.0,0.0001726,2]
[329841895,1718739044293,-6450.44,0.0001726,2]
[329841897,1718739044303,-500.0,0.0001726,2]
[329841899,1718739044312,-500.0,0.0001726,2]
[329841900,1718739044325,-500.0,0.0001726,2]
[329841902,1718739044335,-500.0,0.0001726,2]
[329841904,1718739044344,-572.44,0.0001726,2]
[329841905,1718739044356,-500.0,0.0001726,2]
[329841906,1718739044366,-864.39,0.0001726,2]
[329841907,1718739044375,-500.0,0.0001726,2]
[329841908,1718739044384,-500.0,0.0001726,2]
[329841909,1718739044394,-500.0,0.0001726,2]
[329841910,1718739044405,-1066.17,0.0001726,2]
[329841911,1718739044415,-500.0,0.0001726,2]
[329841912,1718739044425,-518.56,0.0001726,2]
[329841913,1718739044435,-744.28,0.0001726,2]
[329841914,1718739044445,-500.0,0.0001726,2]
[329841915,1718739044455,-500.0,0.0001726,2]
[329841916,1718739044464,-500.0,0.00017532,2]
[329841917,1718739044474,-1097.67951629,0.00017533,2]
[329841918,1718739044484,-500.0,0.00017533,2]
[329841919,1718739044494,-500.0,0.00017533,2]
[329841920,1718739044503,-500.0,0.00017533,2]
[329841921,1718739044512,-500.0,0.00017534,2]
[329841922,1718739044521,-500.0,0.00017534,2]
[329841923,1718739044530,-500.0,0.00017534,2]
[329841924,1718739044540,-560.13,0.00017534,2]
[329841925,1718739044550,-500.0,0.00017534,2]
[329841926,1718739044560,-173.0,0.00017534,2]
[329841927,1718739044569,-1498.29,0.00017534,2]
[329841928,1718739044579,-831.37,0.00017534,2]
[329841929,1718739044589,-3851.95,0.00017534,2]
[329841930,1718739044600,-6450.44,0.00017534,2]
[329841931,1718739044609,-500.0,0.00017534,2]
[329841932,1718739044619,-500.0,0.00017534,2]
[329841933,1718739044629,-500.0,0.00017534,2]
[329841934,1718739044639,-433.4,0.00017534,2]
[329841935,1718739044648,-864.39,0.00017534,2]
[329841936,1718739044658,-500.0,0.00017534,2]
[329841937,1718739044668,-509.0,0.00017534,2]
[329841938,1718739044677,-186.4,0.00017534,2]
[329841939,1718739044687,-1066.17,0.00017534,2]
[329841940,1718739044697,-744.28,0.00017534,2]
[329841941,1718739044707,-500.0,0.00017807,2]
[329841942,1718739044717,-449.84,0.00017808,2]
[329841943,1718739044727,-500.0,0.00017808,2]
[329841944,1718739044737,-500.0,0.00017808,2]
[329841945,1718739044747,-560.13,0.00017808,2]
[329841946,1718739044757,-500.0,0.00017808,2]
[329841947,1718739044768,-1498.29,0.00017808,2]
[329841950,1718739044778,-831.37,0.00017808,2]
[329841953,1718739044787,-3851.95,0.00017808,2]
[329841955,1718739044797,-6450.44,0.00017808,2]
[329841957,1718739044807,-500.0,0.00017808,2]
[329841959,1718739044816,-500.0,0.00017808,2]
[329841961,1718739044825,-160.6,0.00017808,2]
[329841962,1718739044835,-864.39,0.00017808,2]
[329841963,1718739044844,-1066.17,0.00017808,2]
[329841964,1718739044859,-744.28,0.00017808,2]
[329841965,1718739044868,-500.0,0.00018079,2]
[329841966,1718739044877,-500.0,0.00018082,2]
[329841967,1718739044886,-500.0,0.00018082,2]
[329841968,1718739044895,-560.13,0.00018082,2]
[329841969,1718739044904,-526.99999475,0.00018082,2]
[329841970,1718739044913,-1498.29,0.00018082,2]
[329841971,1718739044922,-831.37,0.00018082,2]
[329841972,1718739044932,-3851.95,0.00018082,2]
[329841973,1718739044941,-6450.44,0.00018082,2]
[329841974,1718739044951,-500.0,0.00018082,2]
[329841975,1718739044960,-500.0,0.00018082,2]
[329841976,1718739044970,-864.39,0.00018082,2]
[329841977,1718739044980,-1066.17,0.00018082,2]
[329841978,1718739044990,-744.28,0.00018082,2]
[329841979,1718739045000,-500.0,0.00018326,2]
[329841980,1718739045010,-500.0,0.00018356,2]
[329841981,1718739045020,-165.15,0.00018356,2]
[329841982,1718739045032,-560.13,0.00018356,2]
[329841983,1718739045043,-1498.29,0.00018356,2]
[329841984,1718739045054,-831.37,0.00018356,2]
[329841985,1718739045064,-3851.95,0.00018356,2]
[329841986,1718739045075,-6450.44,0.00018356,2]
[329841987,1718739045086,-500.0,0.00018356,2]
[329841988,1718739045097,-500.0,0.00018356,2]
[329841989,1718739045113,-864.39,0.00018356,2]
[329841990,1718739045122,-1066.17,0.00018356,2]
[329841991,1718739045132,-744.28,0.00018356,2]
[329841992,1718739045142,-855.27093275,0.00018628,2]
[329841993,1718739045152,-500.0,0.00018628,2]
[329841994,1718739045161,-500.0,0.00018629,2]
[329841995,1718739045170,-500.0,0.00018629,2]
[329841996,1718739045179,-500.0,0.00018629,2]
[329841997,1718739045188,-500.0,0.0001863,2]
[329841998,1718739045197,-560.13,0.0001863,2]
[329841999,1718739045207,-1498.29,0.0001863,2]
[329842000,1718739045217,-831.37,0.0001863,2]
[329842001,1718739045228,-2029.46332091,0.0001863,2]
[329842011,1718739047346,-951.39229384,0.00016338,2]
[329842012,1718739047359,-543.58075508,0.00016679,2]
[329842013,1718739047369,-951.39229383,0.0001668,2]
[329842014,1718739047378,-951.39229383,0.00017023,2]
[329842015,1718739047387,-1822.48667909,0.0001863,2]
[329842016,1718739047396,-1860.50023633,0.0001863,2]
[329842017,1718739047410,-3095.52393131,0.0001863,2]
[329842018,1718739047464,-500.0,0.0001863,2]
[329842019,1718739047609,-838.43101216,0.0001863,2]
[329842020,1718739047621,-155.9848202,0.0001863,2]
[329842021,1718739047631,-500.0,0.0001863,2]
[329842022,1718739047641,-864.39,0.0001863,2]
[329842023,1718739047651,-1066.17,0.0001863,2]
[329842025,1718739047661,-744.28,0.0001863,2]
[329842027,1718739047671,-150.0,0.000189,2]
[329842029,1718739047680,-500.0,0.00018904,2]
[329842031,1718739047691,-560.13,0.00018904,2]
[329842032,1718739047701,-831.37,0.00018904,2]
[329842033,1718739047710,-3851.95,0.00018904,2]
[329842034,1718739047719,-6450.44,0.00018904,2]
[329842035,1718739047729,-500.0,0.00018904,2]
[329842036,1718739047739,-864.39,0.00018904,2]
[329842037,1718739047748,-1066.17,0.00018904,2]
[329842038,1718739047758,-744.28,0.00018904,2]
[329842039,1718739047767,-153.0,0.00018932,2]
[329842040,1718739047776,-153.0,0.00018932,2]
[329842041,1718739047786,-323.5556165,0.00018932,2]
[329842042,1718739047796,-153.0,0.00018932,2]
[329842043,1718739047805,-153.0,0.00018932,2]
[329842044,1718739047814,-584.9466086,0.00018932,2]
[329842045,1718739047824,-205.5620548,0.00018932,2]
[329842046,1718739047834,-153.0,0.00018932,2]
[329842047,1718739047843,-205.5620548,0.00018932,2]
[329842048,1718739047854,-153.0,0.00018932,2]
[329842049,1718739047863,-205.3814296,0.00018932,2]
[329842050,1718739047872,-153.0,0.00018932,2]
[329842051,1718739047882,-153.0,0.00018932,2]
[329842052,1718739047891,-153.0,0.00018932,2]
[329842053,1718739047901,-153.0,0.00018932,2]
[329842054,1718739047910,-153.0,0.00018932,2]
[329842055,1718739047920,-153.0,0.00018932,2]
[329842056,1718739047932,-153.0,0.00018932,2]
[329842057,1718739047942,-153.0,0.00018959,2]
[329842058,1718739047952,-1000.0,0.00019,19]
[329842059,1718739047961,-326.388243,0.00019096,2]
[329842060,1718739047971,-500.0,0.00019178,2]
[329842061,1718739047982,-560.13,0.00019178,2]
[329842062,1718739047992,-831.37,0.00019178,2]
[329842063,1718739048002,-3851.95,0.00019178,2]
[329842064,1718739048012,-6450.44,0.00019178,2]
[329842065,1718739048022,-500.0,0.00019178,2]
[329842066,1718739048032,-864.39,0.00019178,2]
[329842067,1718739048043,-1066.17,0.00019178,2]
[329842068,1718739048052,-744.28,0.00019178,2]
[329842069,1718739048062,-500.0,0.00019178,2]
[329842070,1718739048072,-500.0,0.00019178,2]
[329842071,1718739048083,-430.70350808,0.00019178,2]
[329842072,1718739048093,-165.527653,0.00019178,2]
[329842073,1718739048109,-5271.96670823,0.00019274,2]
[329842074,1718739048118,-153.0,0.00019322,2]
[329842075,1718739048129,-153.0,0.00019322,2]
[329842076,1718739048138,-153.0,0.00019322,2]
[329842077,1718739048148,-153.0,0.00019322,2]
[329842078,1718739048157,-153.0,0.00019322,2]
[329842079,1718739048165,-153.0,0.00019322,2]
[329842080,1718739048174,-153.0,0.00019322,2]
[329842081,1718739048184,-153.0,0.00019322,2]
[329842082,1718739048194,-153.0,0.00019322,2]
[329842083,1718739048203,-153.0,0.00019322,2]
[329842084,1718739048212,-153.0,0.00019322,2]
[329842085,1718739048222,-153.0,0.00019322,2]
[329842086,1718739048232,-153.0,0.00019322,2]
[329842087,1718739048241,-153.0,0.00019322,2]
[329842088,1718739048251,-150.0,0.0001943,2]
[329842089,1718739048260,-500.0,0.00019452,2]
[329842090,1718739048269,-560.13,0.00019452,2]
[329842091,1718739048279,-831.37,0.00019452,2]
[329842092,1718739048288,-3851.95,0.00019452,2]
[329842093,1718739048298,-6450.44,0.00019452,2]
[329842094,1718739048307,-500.0,0.00019452,2]
[329842095,1718739048323,-864.39,0.00019452,2]
[329842096,1718739048333,-1066.17,0.00019452,2]
[329842097,1718739048343,-744.28,0.00019452,2]
[329842098,1718739048360,-152.11475794,0.00019516,2]
[329842099,1718739048369,-153.0,0.00019519,2]
[329842100,1718739048379,-153.0,0.00019519,2]
[329842101,1718739048389,-153.0,0.00019519,2]
[329842102,1718739048400,-153.0,0.00019519,2]
[329842103,1718739048411,-153.0,0.00019519,2]
[329842104,1718739048420,-153.0,0.00019519,2]
[329842105,1718739048430,-154.018,0.00019534,2]
[329842106,1718739048439,-500.0,0.00019724,2]
[329842107,1718739048449,-500.0,0.00019724,2]
[329842108,1718739048458,-411.80942436,0.00019726,2]
[329842110,1718739271740,157.07058431,9.999e-05,2]
[329842112,1718739936118,-272.8516895,0.00015557,2]
[329842113,1718739936145,-312.3628795,0.00015626,2]
[329842114,1718739936166,-60.28832891,0.00016336,2]
[329842115,1718740039089,-2075.135313,0.00016236,2]
[329842116,1718740040099,-2457.0210481,0.00016236,2]
[329842117,1718740040121,-803.27400863,0.00016336,2]
[329842118,1718740040141,-286.87043309,0.00016336,2]
[329842119,1718740040160,-154.82968734,0.00016336,2]
[329842120,1718740040183,-417.27200697,0.00016338,2]
[329842121,1718740040204,-300.0,0.0001643,2]
[329842122,1718740040225,-3123.2011782,0.00016431,4]
[329842123,1718740040246,-85.76776541,0.00016433,2]
[329842124,1718740047104,-71.14603387,0.00016433,2]
[329842125,1718740047124,-298.50951799,0.00016433,2]
[329842126,1718740052100,-36.08601198,0.00016433,2]
[329842127,1718740052122,-587.96700956,0.00016434,2]
[329842128,1718740052142,-76.54233594,0.00016435,2]
[329842129,1718740150142,-5140.9365282,0.00015446,2]
[329842130,1718740203852,241.39786517,0.00015446,2]
[329842131,1718740203877,45.47256792,0.00015446,2]
[329842132,1718740219791,417.70286293,0.00015446,2]
[329842174,1718740232415,-298.77538248,0.00016336,2]
[329842176,1718740232425,-755.61704533,0.00016336,2]
[329842178,1718740232434,-474.2229475,0.00016433,2]
[329842195,1718740238932,-197.95499177,0.00016433,2]
[329842196,1718740238942,-1333.36542751,0.00016433,2]
[329842197,1718740238952,-300.0,0.00016434,2]
[329842198,1718740238962,-16570.84856171,0.00016435,2]
[329842199,1718740238974,-6784.34540675,0.00016435,2]
[329842201,1718740238984,-215.75449889,0.00016436,2]
[329842202,1718740238999,-6424.35318602,0.00016436,2]
[329842205,1718740239011,-8170.990182,0.00016436,2]
[329842207,1718740239024,-8448.2973562,0.00016436,2]
[329842209,1718740239035,-1692.33793104,0.00016436,2]
[329842211,1718740239047,-547.78837407,0.00016438,2]
[329842212,1718740239057,-500.0,0.00016438,2]
[329842213,1718740239067,-500.0,0.00016438,2]
[329842214,1718740239078,-500.0,0.00016438,2]
[329842215,1718740239088,-500.0,0.00016438,2]
[329842216,1718740239099,-500.0,0.00016438,2]
[329842217,1718740239109,-500.0,0.00016438,2]
[329842218,1718740239120,-500.0,0.00016438,2]
[329842223,1718740239262,-500.0,0.00016438,2]
[329842224,1718740239274,-500.0,0.00016438,2]
[329842225,1718740239284,-500.0,0.00016438,2]
[329842226,1718740239294,-500.0,0.00016438,2]
[329842227,1718740239305,-500.0,0.00016438,2]
[329842228,1718740239315,-500.0,0.00016438,2]
[329842229,1718740239325,-500.0,0.00016438,2]
[329842230,1718740239335,-611.10775946,0.00016438,2]
[329842231,1718740239345,-500.0,0.00016438,2]
[329842232,1718740239356,-500.0,0.00016438,2]
[329842233,1718740239366,-500.0,0.00016438,2]
[329842234,1718740239377,-500.0,0.00016438,2]
[329842235,1718740239387,-500.0,0.00016438,2]
[329842236,1718740239398,-250.0,0.00016438,2]
[329842237,1718740239408,-500.0,0.00016438,2]
[329842238,1718740239419,-500.0,0.00016438,2]
[329842239,1718740239429,-504.0442793,0.00016438,2]
[329842240,1718740239439,-500.0,0.00016438,2]
[329842241,1718740239449,-500.0,0.00016438,2]
[329842242,1718740239460,-500.0,0.00016438,2]
[329842243,1718740239470,-500.0,0.00016438,2]
[329842244,1718740239480,-500.0,0.00016438,2]
[329842245,1718740239490,-500.0,0.00016438,2]
[329842246,1718740239508,-500.0,0.00016438,2]
[329842247,1718740239519,-500.0,0.00016438,2]
[329842248,1718740239529,-500.0,0.00016438,2]
[329842249,1718740239540,-500.0,0.00016438,2]
[329842250,1718740239551,-500.0,0.00016438,2]
[329842251,1718740239561,-462.29859909,0.00016438,2]
[329842252,1718740239571,-328.75003519,0.00016438,2]
[329842253,1718740239582,-420.4211887,0.00016438,2]
[329842254,1718740239592,-500.0,0.00016438,2]
[329842255,1718740239602,-500.0,0.00016438,2]
[329842256,1718740239613,-634.72315103,0.00016438,2]
[329842257,1718740239623,-500.0,0.00016438,2]
[329842258,1718740239633,-500.0,0.00016438,2]
[329842259,1718740239644,-503.25826338,0.00016438,2]
[329842260,1718740239654,-572.16711077,0.00016438,2]
[329842261,1718740239664,-500.0,0.00016438,2]
[329842262,1718740239674,-500.0,0.00016438,2]
[329842263,1718740239684,-532.16962982,0.00016438,2]
[329842264,1718740239696,-500.0,0.00016438,2]
[329842265,1718740239708,-500.0,0.00016438,2]
[329842266,1718740239718,-500.0,0.00016438,2]
[329842267,1718740239729,-500.0,0.00016438,2]
[329842268,1718740239739,-500.0,0.00016438,2]
[329842269,1718740239752,-505.00040707,0.00016438,2]
[329842270,1718740239761,-157.23325445,0.00016438,2]
[329842271,1718740239771,-500.0,0.00016438,2]
[329842272,1718740239780,-500.0,0.00016438,2]
[329842273,1718740239790,-500.0,0.00016438,2]
[329842274,1718740239803,-500.0,0.00016438,2]
[329842275,1718740239812,-500.0,0.00016438,2]
[329842276,1718740239822,-500.0,0.00016438,2]
[329842277,1718740239831,-502.14333954,0.00016438,2]
[329842278,1718740239842,-508.32165735,0.00016438,2]
[329842279,1718740239851,-500.0,0.00016438,2]
[329842280,1718740239861,-500.0,0.00016438,2]
[329842281,1718740239872,-500.0,0.00016438,2]
[329842282,1718740239882,-500.0,0.00016438,2]
[329842283,1718740239893,-500.0,0.00016438,2]
[329842284,1718740239904,-500.0,0.00016438,2]
[329842285,1718740239915,-500.0,0.00016438,2]
[329842286,1718740239926,-500.0,0.00016438,2]
[329842287,1718740239936,-500.0,0.00016438,2]
[329842288,1718740239946,-500.0,0.00016438,2]
[329842289,1718740239956,-500.0,0.00016438,2]
[329842290,1718740239967,-284.99461158,0.00016438,2]
[329842291,1718740239982,-215.00538842,0.00016438,2]
[329842292,1718740239995,-500.0,0.00016438,2]
[329842293,1718740240005,-500.0,0.00016438,2]
[329842294,1718740240014,-500.0,0.00016438,2]
[329842295,1718740240023,-500.0,0.00016438,2]
[329842296,1718740240032,-500.0,0.00016438,2]
[329842297,1718740240043,-500.0,0.00016438,2]
[329842298,1718740240053,-500.0,0.00016438,2]
[329842299,1718740240063,-500.0,0.00016438,2]
[329842300,1718740240072,-508.16129424,0.00016438,2]
[329842301,1718740240083,-544.08327368,0.00016438,2]
[329842302,1718740240092,-500.0,0.00016438,2]
[329842303,1718740240102,-500.0,0.00016438,2]
[329842304,1718740240112,-500.0,0.00016438,2]
[329842305,1718740240122,-535.8450936,0.00016438,2]
[329842306,1718740240132,-500.0,0.00016438,2]
[329842307,1718740240142,-500.0,0.00016438,2]
[329842308,1718740240153,-500.0,0.00016438,2]
[329842309,1718740240163,-500.0,0.00016438,2]
[329842310,1718740240173,-15.57455127,0.00016438,2]
[329842311,1718740240186,-486.50957474,0.00016438,2]
[329842312,1718740240196,-501.31958784,0.00016438,2]
[329842313,1718740240205,-543.46180541,0.00016438,2]
[329842315,1718740240215,-500.0,0.00016438,2]
[329842316,1718740240225,-500.0,0.00016438,2]
[329842318,1718740240235,-527.0323689,0.00016438,2]
[329842319,1718740240247,-500.0,0.00016438,2]
[329842321,1718740240257,-500.0,0.00016438,2]
[329842322,1718740240267,-500.0,0.00016438,2]
[329842323,1718740240277,-500.0,0.00016438,2]
[329842324,1718740240287,-432.61683931,0.00016438,2]
[329842325,1718740240296,-500.0,0.00016438,2]
[329842327,1718740240306,-500.0,0.00016438,2]
[329842329,1718740240316,-502.84945173,0.00016438,2]
[329842331,1718740240325,-555.6738893,0.00016438,2]
[329842333,1718740240334,-500.0,0.00016438,2]
[329842335,1718740240345,-500.0,0.00016438,2]
[329842336,1718740240354,-500.0,0.00016438,2]
[329842337,1718740240365,-500.0,0.00016438,2]
[329842338,1718740240375,-500.0,0.00016438,2]
[329842339,1718740240384,-500.0,0.00016438,2]
[329842340,1718740240394,-500.0,0.00016438,2]
[329842341,1718740240404,-500.0,0.00016438,2]
[329842342,1718740240414,-500.0,0.00016438,2]
[329842343,1718740240423,-500.0,0.00016438,2]
[329842344,1718740240432,-280.53648277,0.00016438,2]
[329842345,1718740240447,-219.46351723,0.00016438,2]
[329842346,1718740240457,-500.0,0.00016438,2]
[329842347,1718740240467,-500.0,0.00016438,2]
[329842348,1718740240476,-638.47232009,0.00016438,2]
[329842350,1718740240486,-509.04746869,0.00016438,2]
[329842352,1718740240498,-500.0,0.00016438,2]
[329842354,1718740240507,-520.73724395,0.00016438,2]
[329842355,1718740240516,-222.76624485,0.00016438,2]
[329842357,1718740240528,-285.79262607,0.00016438,2]
[329842358,1718740240538,-500.0,0.00016438,2]
[329842360,1718740240548,-515.37437342,0.00016438,2]
[329842362,1718740240558,-500.0,0.00016438,2]